bitfinex-derivatives/quotes_BNBF0:USTF0_20250112
["timestamp","ask_amount","ask_price","bid_price","bid_amount"]
[1736683734775,0.28971231,690.34,689.24,1.78953134]
[1736683735671,0.28971231,690.34,689.24,2.69286329]
[1736683736277,0.28971231,690.34,689.25,3.02406594]
[1736683736577,0.28971231,690.34,689.26,1.78953134]
[1736683737575,0.28971231,690.34,689.14,2.692768]
[1736683739373,0.28971231,690.34,689.15,3.02406594]
[1736683739573,0.28971231,690.34,689.16,2.692768]
[1736683740480,0.28971231,690.34,689.16,1.78953134]
[1736683741178,0.28971231,690.34,689.14,2.6927033]
[1736683742579,0.28971231,690.34,689.15,3.02406594]
[1736683742776,0.28971231,690.34,689.16,1.78953134]
[1736683744483,0.28971231,690.34,689.08,2.69261652]
[1736683744677,0.28971231,690.34,689.08,1.78953134]
[1736683744879,0.28971231,690.34,689.08,3.99297098]
[1736683745073,0.28971231,690.34,689.09,1.19329388]
[1736683745480,0.28971231,690.34,689.1,0.29023363]
[1736683746577,0.28971231,690.34,689.1,2.07976497]
[1736683748980,0.28971231,690.34,689.1,2.98263214]
[1736683749279,0.28971231,690.34,689.11,3.02406594]
[1736683749480,0.28971231,690.34,689.12,2.69239851]
[1736683749679,0.28971231,690.34,689.12,2.98262372]
[1736683749976,0.28971231,690.34,689.2,1.30035534]
[1736683750981,0.28971231,690.34,689.18,1.30035534]
[1736683751679,0.28971231,690.34,689.2,1.30035534]
[1736683752680,0.28971231,690.34,689.14,1.78953134]
[1736683752681,0.28971231,690.34,689.16,1.30035534]
[1736683753075,0.28971231,690.34,689.16,3.08988668]
[1736683753682,0.28971231,690.34,689.16,1.78953134]
[1736683753879,0.28971231,690.34,689.15,3.02406594]
[1736683754276,0.28971231,690.34,689.12,0.29022521]
[1736683765785,0.28971231,690.34,689.14,1.30035534]
[1736683766884,0.28971231,690.34,689.16,1.30035534]
[1736683767687,0.28971231,690.34,689.14,1.30035534]
[1736683768890,0.28971231,690.34,689.13,1.30035534]
[1736683769790,0.28971231,690.34,689.12,0.29022521]
[1736683769791,0.28971231,690.34,689.15,1.30035534]
[1736683770891,0.28971231,690.34,689.16,1.30035534]
[1736683772195,0.28971231,690.34,689.12,0.29022521]
[1736683773695,0.28971231,690.34,689.12,1.19423901]
[1736683773892,0.28971231,690.34,689.13,1.30035534]
[1736683774794,0.28971231,690.34,689.14,0.29021679]
[1736683775492,0.28971231,690.34,689.14,2.07700389]
[1736683775692,0.28971231,690.34,689.19,1.30035534]
[1736683775897,0.28971231,690.34,689.2,0.29019152]
[1736683776794,0.28971231,690.34,689.23,1.30035534]
[1736683777204,0.28971231,690.34,689.24,0.29017468]
[1736683779702,0.28971231,690.34,689.27,1.30035534]
[1736683780805,1.08208237,690.74,689.27,1.30035534]
[1736683781104,1.51299414,690.79,689.24,0.29017468]
[1736683781105,1.08208237,690.71,689.36,1.30035534]
[1736683781902,0.28954873,690.73,689.24,0.29017468]
[1736683793214,0.28954873,690.73,689.28,1.30035534]
[1736683793816,0.28954873,690.73,689.29,0.29015363]
[1736683795416,0.28954873,690.73,689.3,1.30035534]
[1736683795611,0.28954873,690.73,689.31,0.29014521]
[1736683799516,0.28954873,690.73,689.32,1.30035534]
[1736683799714,0.28954873,690.73,689.33,0.29013679]
[1736683801412,0.28954873,690.73,689.33,1.19273844]
[1736683802018,0.28954873,690.73,689.33,4.21216329]
[1736683802221,0.28954873,690.73,689.34,2.6891945]
[1736683802821,0.28954873,690.73,689.35,0.29012838]
[1736683803019,0.28954873,690.73,689.35,3.30955323]
[1736683803221,0.28954873,690.73,689.36,2.6891945]
[1736683803422,0.28954873,690.73,689.37,0.29011996]
[1736683804816,0.28954873,690.73,689.37,3.30954481]
[1736683805021,0.28954873,690.73,689.38,2.6891945]
[1736683805222,0.28954873,690.73,689.39,0.29011154]
[1736683806523,0.28954873,690.73,689.39,3.30953639]
[1736683806722,0.28954873,690.73,689.4,2.6891945]
[1736683808025,0.28954873,690.73,689.41,3.01942485]
[1736683808225,0.28954873,690.73,689.42,2.6891945]
[1736683808920,0.28954873,690.73,689.42,1.78659285]
[1736683809522,0.28954873,690.73,689.4,1.78659285]
[1736683810825,0.28954873,690.73,689.4,2.68552874]
[1736683811419,0.28954873,690.73,689.41,3.01942485]
[1736683811624,0.28954873,690.73,689.42,1.78659285]
[1736683812320,0.28954873,690.73,689.42,2.68544866]
[1736683813219,0.28954873,690.73,689.43,1.30035534]
[1736683813424,0.28954873,690.73,689.43,5.218636]
[1736683813726,0.28954873,690.73,689.44,2.68544866]
[1736683814124,0.28954873,690.73,689.44,3.985804]
[1736683814322,0.28954873,690.73,689.44,3.08694819]
[1736683815121,0.28954873,690.73,689.45,1.30035534]
[1736683815527,0.28954873,690.73,689.45,4.31978019]
[1736683816626,0.28954873,690.73,689.45,3.01942485]
[1736683817331,0.28954873,690.73,689.39,0.29011154]
[1736683819533,0.28954873,690.73,689.42,1.30035534]
[1736683819728,0.28954873,690.73,689.43,0.29009471]
[1736683825336,0.28954873,690.73,689.44,1.30035534]
[1736683825532,0.28954873,690.73,689.45,0.2900863]
[1736683826138,0.28954873,690.73,689.54,1.30035534]
[1736683827335,0.28954873,690.73,689.47,1.30035534]
[1736683828434,0.28954873,690.73,689.46,3.01942485]
[1736683828435,0.28954873,690.73,689.46,6.09901972]
[1736683828739,0.28954873,690.73,689.47,1.77923953]
[1736683829135,0.28954873,690.73,689.49,1.30035534]
[1736683830442,0.28954873,690.73,689.53,1.30035534]
[1736683831141,0.28954873,690.73,689.52,1.30035534]
[1736683831937,0.28954873,690.73,689.58,1.30035534]
[1736683833945,0.28954873,690.73,689.66,1.30035534]
[1736683837538,0.28954873,690.73,689.68,1.30035534]
[1736683838248,0.28954873,690.73,689.67,1.30035534]
[1736683839238,0.28954873,690.73,689.68,1.30035534]
[1736683840243,0.28954873,690.73,689.66,1.78281162]
[1736683841639,0.28954873,690.73,689.62,2.68521231]
[1736683843037,0.28954873,690.73,689.63,3.01942485]
[1736683843242,0.28954873,690.73,689.64,2.68551166]
[1736683844542,0.28954873,690.73,689.65,3.01942485]
[1736683844742,0.28954873,690.73,689.66,1.78281162]
[1736683846445,0.28954873,690.73,689.62,1.78626224]
[1736683848047,0.28954873,690.73,689.52,2.68985025]
[1736683848244,0.28954873,690.73,689.52,1.78626224]
[1736683851346,0.28954873,690.73,689.5,2.69049584]
[1736683852454,0.28954873,690.73,689.5,3.99085118]
[1736683852653,0.28954873,690.73,689.51,0.9042336]
[1736683853054,0.28954873,690.73,689.51,3.92365845]
[1736683853254,0.28954873,690.73,689.52,2.69049584]
[1736683854255,0.28954873,690.73,689.52,1.78626224]
[1736683855453,0.28954873,690.73,689.53,1.30035534]
[1736683855956,0.28954873,690.73,689.53,4.31978019]
[1736683856156,0.28954873,690.73,689.54,2.6906388]
[1736683856757,0.28954873,690.73,689.54,3.99099414]
[1736683857057,0.28954873,690.73,689.55,0.90437656]
[1736683857460,0.28954873,690.73,689.55,3.92380141]
[1736683857659,0.28954873,690.73,689.56,2.6906388]
[1736683858159,0.28954873,690.73,689.65,1.30035534]
[1736683858957,0.28954873,690.73,689.64,1.30035534]
[1736683859559,0.28954873,690.73,689.65,1.30035534]
[1736683861865,0.28954873,690.73,689.43,1.30035534]
[1736683862764,0.28954873,690.73,689.44,1.30035534]
[1736683863765,0.28954873,690.73,689.38,1.30035534]
[1736683864361,0.28954873,690.73,689.39,1.30035534]
[1736683866268,0.28954873,690.73,689.41,1.30035534]
[1736683866666,0.28954873,690.73,689.37,3.08869634]
[1736683867266,0.28954873,690.73,689.38,3.02249459]
[1736683867466,0.28954873,690.73,689.39,1.788341]
[1736683868668,0.28954873,690.73,689.38,1.788341]
[1736683870271,0.28954873,690.73,689.43,1.30035534]
[1736683871273,0.28954873,690.73,689.59,1.30035534]
[1736683875273,0.28954873,690.73,689.58,1.30035534]
[1736683876173,0.28954873,690.73,689.56,3.08869634]
[1736683876373,0.28954873,690.73,689.57,0.90447074]
[1736683876775,0.28954873,690.73,689.57,3.92696533]
[1736683877077,0.28954873,690.73,689.58,2.69281174]
[1736683877271,0.28954873,690.73,689.65,1.30035534]
[1736683878477,1.08208237,690.82,689.65,1.30035534]
[1736683878675,1.08208237,690.9,689.59,3.02249459]
[1736683879471,1.51228733,691.17,689.59,3.02249459]
[1736683879774,0.28936859,691.16,689.59,3.02249459]
[1736683880076,0.28936859,691.16,689.21,1.30035534]
[1736683880272,0.28936859,691.16,689.16,1.30035534]
[1736683880876,0.28936859,691.16,689.12,1.30035534]
[1736683881973,0.28936859,691.16,689.07,0.90326674]
[1736683881974,0.28936859,691.16,689.1,1.30035534]
[1736683882879,0.28936859,691.16,689.09,1.30035534]
[1736683883079,0.28936859,691.16,689.09,2.20362208]
[1736683883481,0.28936859,691.16,689.09,0.90326674]
[1736683883679,0.28936859,691.16,689.08,2.68971835]
[1736683884279,0.28936859,691.16,689.09,3.02249459]
[1736683884574,0.28936859,691.16,689.1,1.78645161]
[1736683884779,0.28936859,691.16,689.1,3.08680695]
[1736683884978,0.28936859,691.16,689.11,0.90213765]
[1736683885781,0.28936859,691.16,689.11,3.02249459]
[1736683885981,0.28936859,691.16,689.12,2.68858926]
[1736683888181,0.28936859,691.16,689.13,3.02249459]
[1736683888391,0.28936859,691.16,689.23,1.30035534]
[1736683889290,0.28936859,691.16,689.45,1.59044164]
[1736683890488,0.28936859,691.16,689.55,1.30035534]
[1736683891492,0.28936859,691.16,689.5,1.30035534]
[1736683892685,0.28936859,691.16,689.45,0.2900863]
[1736683892686,0.28936859,691.16,689.49,1.30035534]
[1736683892887,0.28936859,691.16,689.52,0.29005685]
[1736683901688,0.28936859,691.16,689.52,3.31255144]
[1736683901889,0.28936859,691.16,689.53,2.68858926]
[1736683903088,0.28936859,691.16,689.53,3.9889446]
[1736683903295,0.28936859,691.16,689.54,0.90213765]
[1736683903697,0.28936859,691.16,689.54,3.92463224]
[1736683903896,0.28936859,691.16,689.55,2.68858926]
[1736683904894,0.28936859,691.16,689.56,0.29004002]
[1736683905193,0.28936859,691.16,689.57,1.30035534]
[1736683905396,0.28936859,691.16,689.58,0.29003161]
[1736683905596,0.28936859,691.16,689.58,1.19216926]
[1736683906193,0.28936859,691.16,689.75,1.30035534]
[1736683906993,0.28936859,691.16,689.72,1.30035534]
[1736683907188,0.28936859,691.16,689.73,0.28996853]
[1736683908198,0.28936859,691.16,689.77,1.30035534]
[1736683908399,0.28936859,691.16,689.78,0.28994751]
[1736683909598,0.28936859,691.16,689.78,1.59030285]
[1736683910400,0.28936859,691.16,689.81,1.30035534]
[1736683911498,0.28936859,691.16,689.84,1.30035534]
[1736683912501,0.28936859,691.16,689.86,1.30035534]
[1736683913602,0.28936859,691.16,689.89,1.30035534]
[1736683914602,0.28936859,691.16,689.78,0.28994751]
[1736683916504,0.28936859,691.16,689.84,1.30035534]
[1736683917004,0.28936859,691.16,689.85,0.28991809]
[1736683925606,0.28936859,691.16,689.85,1.59027343]
[1736683926406,0.28936859,691.16,689.85,0.28991809]
[1736683936818,0.28936859,691.16,689.9,1.30035534]
[1736683937920,0.28936859,691.16,689.85,0.28991809]
[1736683939421,0.28936859,691.16,689.85,2.96241949]
[1736683939919,0.28936859,691.16,689.9,1.30035534]
[1736683940220,0.28936859,691.16,689.91,0.28989288]
[1736683942319,0.28936859,691.16,689.92,1.30035534]
[1736683942718,0.28936859,691.16,689.93,0.28988448]
[1736683943521,0.28936859,691.16,689.93,4.26274122]
[1736683943723,0.28936859,691.16,689.94,0.89742451]
[1736683943917,0.28936859,691.16,689.95,0.28987607]
[1736683944317,0.28936859,691.16,690.0,1.30035534]
[1736683944522,0.28936859,691.16,690.01,0.28985087]
[1736683948426,0.28936859,691.16,690.13,1.30035534]
[1736683949523,1.08208237,691.65,690.11,1.30035534]
[1736683949924,1.51119828,691.61,690.11,1.30035534]
[1736683950122,0.28918449,691.6,690.11,1.30035534]
[1736683950324,0.28918449,691.6,690.01,0.28985087]
[1736683958034,0.28918449,691.6,690.06,1.30035534]
[1736683958631,0.28918449,691.6,690.08,0.28982146]
[1736683984856,0.28918449,691.6,690.09,1.30035534]
[1736683985656,0.28918449,691.6,690.08,1.5901768]
[1736683987260,1.51113266,691.59,690.08,1.5901768]
[1736683988059,1.51113266,691.59,690.08,0.28982146]
[1736683989158,0.28919286,691.58,690.08,0.28982146]
[1736683991760,0.28919286,691.58,690.08,1.5901768]
[1736683992659,0.28919286,691.58,690.08,0.28982146]
[1736683995262,0.28919286,691.58,690.08,3.29173849]
[1736683995460,0.28919286,691.58,690.09,2.67832602]
[1736683996765,0.28919286,691.58,690.1,3.00191703]
[1736683996965,0.28919286,691.58,690.11,2.67957658]
[1736683997266,0.28919286,691.58,690.1,3.00191703]
[1736683998459,0.28919286,691.58,690.08,0.28982146]
[1736684023178,1.08208237,691.53,690.16,1.30035534]
[1736684024481,1.08208237,691.53,690.12,1.30035534]
[1736684024482,0.28921377,691.53,690.12,1.30035534]
[1736684024681,0.28921377,691.53,690.13,0.28980047]
[1736684025283,1.37129614,691.53,690.13,1.59015581]
[1736684027482,1.08208237,691.52,690.13,1.59015581]
[1736684028382,1.08208237,691.52,690.15,1.30035534]
[1736684029684,1.08208237,691.5,690.14,3.07787331]
[1736684029985,1.08208237,691.5,690.15,3.00191703]
[1736684030183,1.08208237,691.5,690.16,1.77751797]
[1736684030581,1.08208237,691.5,690.16,2.68623472]
[1736684030782,1.08208237,691.5,690.16,3.98659006]
[1736684030985,1.08208237,691.5,690.17,0.90871675]
[1736684031584,1.08208237,691.48,690.2,1.30035534]
[1736684032285,1.08208237,691.46,690.24,1.30035534]
[1736684034988,1.08208237,691.46,690.25,1.30035534]
[1736684035587,1.08208237,691.49,690.29,1.30035534]
[1736684037284,1.08208237,691.49,690.3,1.30035534]
[1736684038384,1.37129614,691.53,690.24,1.77751797]
[1736684040282,1.37129614,691.53,690.24,4.779435]
[1736684040483,1.37129614,691.53,690.25,1.77751797]
[1736684041588,1.08208237,691.52,690.25,1.77751797]
[1736684042691,1.08208237,691.48,690.25,1.77751797]
[1736684043690,1.08208237,691.47,690.25,1.77751797]
[1736684044392,1.08208237,691.47,690.22,2.68835715]
[1736684044691,0.28921377,691.53,690.22,2.68835715]
[1736684044692,1.08208237,691.51,690.23,0.28975848]
[1736684045786,0.28921377,691.53,690.23,0.28975848]
[1736684045787,1.37129614,691.53,690.23,0.28975848]
[1736684046189,1.37129614,691.53,690.23,3.29167551]
[1736684046792,0.28921377,691.53,690.23,3.29167551]
[1736684048092,0.28921377,691.53,690.23,0.28975848]
[1736684057300,1.08208237,691.45,690.26,1.30035534]
[1736684058206,1.37129614,691.53,690.23,0.28975848]
[1736684059907,1.08208237,691.5,690.23,0.28975848]
[1736684060604,0.2892305,691.49,690.23,0.28975848]
[1736684069107,1.51133501,691.48,690.23,0.28975848]
[1736684069307,0.28923886,691.47,690.23,0.28975848]
[1736684080418,0.28923886,691.47,690.26,1.30035534]
[1736684081417,0.28923886,691.47,690.28,1.30035534]
[1736684082320,0.28923886,691.47,690.23,0.28975848]
[1736684082321,0.28923886,691.47,690.26,1.30035534]
[1736684083514,0.28923886,691.47,690.23,0.28975848]
[1736684083515,0.28923886,691.47,690.24,1.30035534]
[1736684084418,0.28923886,691.47,690.25,1.30035534]
[1736684085018,0.28923886,691.47,690.24,2.21177895]
[1736684086114,1.51079371,691.8,690.24,2.21177895]
[1736684086322,1.51079371,691.8,690.24,5.21369598]
[1736684086521,1.51079371,691.8,690.25,2.69738409]
[1736684087923,1.51079371,691.8,690.26,3.00191703]
[1736684088120,1.51079371,691.8,690.27,2.69738409]
[1736684088317,1.51079371,691.8,690.28,0.28973749]
[1736684089224,1.51079371,691.8,690.28,3.29165452]
[1736684089418,1.51079371,691.8,690.29,2.69738409]
[1736684089617,1.51079371,691.8,690.3,0.2897291]
[1736684100222,0.28910507,691.79,690.3,0.2897291]
[1736684109029,0.26585443,691.78,690.3,0.2897291]
[1736684109437,0.28910507,691.79,690.3,0.2897291]
[1736684109639,0.26585376,691.78,690.3,0.2897291]
[1736684109941,0.26586313,691.77,690.3,0.2897291]
[1736684110139,0.26586313,691.76,690.3,0.2897291]
[1736684110441,0.26586313,691.75,690.3,0.2897291]
[1736684110641,0.26586313,691.74,690.3,0.2897291]
[1736684110841,0.28910507,691.79,690.3,0.2897291]
[1736684111037,0.26587333,691.78,690.3,0.2897291]
[1736684111447,1.08208237,691.77,690.3,0.2897291]
[1736684111742,0.26587333,691.76,690.3,0.2897291]
[1736684112443,1.08208237,691.74,690.3,0.2897291]
[1736684112643,0.26587449,691.73,690.3,0.2897291]
[1736684113246,1.5109085,691.72,690.3,0.2897291]
[1736684113643,0.28913851,691.71,690.3,0.2897291]
[1736684113945,1.08208237,691.7,690.3,0.2897291]
[1736684114444,0.28914687,691.69,690.3,0.2897291]
[1736684115146,1.08208237,691.64,690.33,1.30035534]
[1736684115942,0.28914687,691.69,690.3,0.2897291]
[1736684126446,0.28914687,691.69,690.55,1.30035534]
[1736684127550,0.28914687,691.69,690.53,1.30035534]
[1736684128553,0.28914687,691.69,690.48,1.77740462]
[1736684128554,0.28914687,691.69,690.5,1.30035534]
[1736684129354,0.28914687,691.69,690.49,6.08274478]
[1736684129556,0.28914687,691.69,690.5,1.77740462]
[1736684131451,0.28914687,691.69,690.49,1.77740462]
[1736684133154,0.28914687,691.69,690.41,2.68325807]
[1736684134762,0.28914687,691.69,690.42,3.00498482]
[1736684134959,0.28914687,691.69,690.43,2.68325807]
[1736684136861,0.28914687,691.69,690.44,3.00498482]
[1736684137057,0.28914687,691.69,690.45,2.68325807]
[1736684137260,0.28914687,691.69,690.46,0.28966196]
[1736684138160,0.28914687,691.69,690.46,3.29464678]
[1736684138359,0.28914687,691.69,690.47,2.68325807]
[1736684138959,1.08208237,692.59,690.47,2.68325807]
[1736684138960,1.08208237,692.28,690.47,2.68325807]
[1736684139161,1.51017633,692.11,690.47,2.68325807]
[1736684139358,0.28890879,692.26,690.47,2.68325807]
[1736684139559,0.26573695,692.25,690.47,2.68325807]
[1736684139860,0.26574035,692.24,690.47,2.68325807]
[1736684140164,0.26574035,692.23,690.48,3.00498482]
[1736684140364,0.26574035,692.23,690.49,2.68325807]
[1736684140664,0.26574249,692.22,690.48,3.00498482]
[1736684140865,1.51004527,692.24,690.48,3.00498482]
[1736684141164,0.26574065,692.23,690.48,3.00498482]
[1736684141567,0.26574065,692.23,690.46,0.28966196]
[1736684142260,1.51004527,692.24,690.46,0.28966196]
[1736684143866,0.26573498,692.23,690.46,0.28966196]
[1736684145270,0.26572848,692.22,690.46,0.28966196]
[1736684145568,0.26572848,692.21,690.46,0.28966196]
[1736684145768,0.28893383,692.2,690.46,0.28966196]
[1736684150370,0.26573369,692.19,690.46,0.28966196]
[1736684150570,0.28894218,692.18,690.46,0.28966196]
[1736684150769,0.26573369,692.17,690.46,0.28966196]
[1736684151069,0.28895053,692.16,690.46,0.28966196]
[1736684151268,0.26573369,692.15,690.46,0.28966196]
[1736684152370,1.79913232,692.16,690.46,0.28966196]
[1736684156969,1.79913232,692.16,690.52,1.30035534]
[1736684157873,1.79913232,692.16,690.53,0.2896326]
[1736684158069,0.2889547,692.15,690.53,0.2896326]
[1736684158874,0.2889547,692.15,690.55,1.30035534]
[1736684159174,0.2889547,692.15,690.56,0.28962001]
[1736684159975,0.2889547,692.15,690.58,1.30035534]
[1736684160273,0.2889547,692.15,690.59,0.28960743]
[1736684160873,1.08208237,692.12,690.59,0.28960743]
[1736684161367,0.2889714,692.11,690.59,0.28960743]
[1736684162170,0.2889714,692.11,690.6,1.30035534]
[1736684163370,0.2889714,692.11,690.59,0.28960743]
[1736684163371,1.37105377,692.11,690.59,0.28960743]
[1736684164375,1.37105377,692.11,690.67,1.30035534]
[1736684164674,1.35760501,692.11,690.67,1.30035534]
[1736684165375,0.27552264,692.11,690.67,1.30035534]
[1736684165875,0.27552264,692.11,690.68,0.28956969]
[1736684166175,1.35760501,692.11,690.68,0.28956969]
[1736684166777,1.08208237,692.1,690.68,0.28956969]
[1736684167075,0.28897975,692.09,690.68,0.28956969]
[1736684185890,0.28897975,692.09,690.68,1.58992503]
[1736684186591,0.28897975,692.09,690.68,0.28956969]
[1736684191287,0.28897975,692.09,690.71,1.30035534]
[1736684191788,0.28897975,692.09,690.73,0.28954873]
[1736684192394,0.28897975,692.09,690.81,1.30035534]
[1736684192593,0.28897975,692.09,690.82,0.28951101]
[1736684197595,0.28897975,692.09,690.82,1.58986635]
[1736684198499,0.28897975,692.09,691.0,1.30035534]
[1736684199195,0.28897975,692.09,691.01,1.30035534]
[1736684200198,0.28897975,692.09,691.04,1.30035534]
[1736684201098,0.28897975,692.09,690.99,1.30035534]
[1736684202003,0.28897975,692.09,691.0,1.30035534]
[1736684202799,0.28897975,692.09,691.02,1.30035534]
[1736684206206,0.28897975,692.09,691.0,3.00498482]
[1736684206598,0.28897975,692.09,690.91,1.30035534]
[1736684206802,0.28897975,692.09,690.92,0.28946911]
[1736684208104,0.28897975,692.09,690.93,1.30035534]
[1736684208301,0.28897975,692.09,690.94,0.28946073]
[1736684210801,0.28897975,692.09,690.94,1.58981607]
[1736684213006,0.28897975,692.09,690.94,0.28946073]
[1736684216011,0.28897975,692.09,691.0,1.30035534]
[1736684216911,0.28897975,692.09,690.96,1.30035534]
[1736684217610,0.28897975,692.09,690.95,3.00498482]
[1736684217807,0.28897975,692.09,690.96,1.77473421]
[1736684218011,0.28897975,692.09,690.96,1.77693768]
[1736684219804,0.28897975,692.09,690.96,1.76355305]
[1736684220010,0.28897975,692.09,690.94,0.28946073]
[1736684223411,0.28897975,692.09,690.94,1.58981607]
[1736684224112,0.28897975,692.09,690.94,0.28946073]
[1736684224908,0.28897975,692.09,690.94,1.58981607]
[1736684225920,0.28897975,692.09,690.95,1.30035534]
[1736684226815,0.28897975,692.09,690.99,1.30035534]
[1736684227716,0.28897975,692.09,691.03,1.30035534]
[1736684228720,0.28897975,692.09,690.95,3.00498482]
[1736684228921,0.28897975,692.09,690.96,0.28945235]
[1736684238626,0.28897975,692.09,690.99,1.30035534]
[1736684239323,0.28897975,692.09,691.01,1.30035534]
[1736684242224,0.28897975,692.09,690.96,3.29443717]
[1736684243030,0.28897975,692.09,690.96,0.28945235]
[1736684243422,1.50929758,692.5,690.96,0.28945235]
[1736684243623,0.28881283,692.49,690.96,0.28945235]
[1736684249028,1.08208237,692.43,690.96,0.28945235]
[1736684249830,1.08208237,692.42,690.96,0.28945235]
[1736684250936,1.08208237,692.39,690.96,0.28945235]
[1736684251532,0.28885871,692.38,690.96,0.28945235]
[1736684252234,0.265643,692.37,690.96,0.28945235]
[1736684252631,1.08208237,692.33,690.96,0.28945235]
[1736684253233,1.50959766,692.32,690.96,0.28945235]
[1736684254136,1.08208237,692.29,690.96,0.28945235]
[1736684254538,0.28890044,692.28,690.96,0.28945235]
[1736684256534,1.37098281,692.28,690.96,0.28945235]
[1736684260142,1.08208237,692.26,690.96,0.28945235]
[1736684261240,0.28891296,692.25,690.96,0.28945235]
[1736684263246,1.08208237,692.22,690.96,0.28945235]
[1736684264043,1.50971772,692.24,690.96,0.28945235]
[1736684266742,0.28892131,692.23,690.96,0.28945235]
[1736684278657,1.37100368,692.23,690.96,0.28945235]
[1736684279757,1.08208237,692.21,690.96,0.28945235]
[1736684279954,1.37101203,692.21,690.96,0.28945235]
[1736684280459,1.08208237,692.18,690.96,0.28945235]
[1736684281452,0.28893383,692.2,690.96,0.28945235]
[1736684281453,1.08208237,692.15,690.96,0.28945235]
[1736684282252,0.28893383,692.2,690.96,0.28945235]
[1736684282253,1.3710162,692.2,690.96,0.28945235]
[1736684282457,0.288938,692.19,690.96,0.28945235]
[1736684285058,1.08208237,692.17,690.96,1.58980769]
[1736684287067,1.37102037,692.19,690.96,0.28945235]
[1736684290068,1.08208237,692.18,690.96,1.58980769]
[1736684291472,1.08208237,692.13,690.96,0.28945235]
[1736684292370,1.08208237,692.12,690.96,0.28945235]
[1736684293272,1.08208237,692.14,690.96,0.28945235]
[1736684293968,1.08208237,692.13,690.96,0.28945235]
[1736684294972,1.08208237,692.12,690.96,0.28945235]
[1736684295867,1.08208237,692.11,690.96,0.28945235]
[1736684298683,1.08208237,692.17,690.99,1.30035534]
[1736684301681,1.08208237,692.17,690.99,3.07841467]
[1736684302677,1.08208237,692.17,691.0,3.00498482]
[1736684302877,1.08208237,692.17,691.01,1.77805933]
[1736684304685,0.288938,692.19,691.01,1.77805933]
[1736684304686,1.08208237,692.14,691.01,1.77805933]
[1736684306079,1.08208237,692.08,691.01,1.77805933]
[1736684306382,1.08208237,692.08,690.99,1.77805933]
[1736684307185,1.08208237,692.09,690.98,3.00498482]
[1736684307581,1.08208237,692.09,690.96,0.28945235]
[1736684308181,1.08208237,692.06,690.96,0.28945235]
[1736684309088,1.08208237,692.07,690.96,0.28945235]
[1736684310089,1.08208237,692.08,690.96,0.28945235]
[1736684310887,1.08208237,692.09,690.96,0.28945235]
[1736684312189,0.28898393,692.08,690.96,0.28945235]
[1736684312586,1.08208237,692.07,690.96,0.28945235]
[1736684313792,0.28899228,692.06,690.96,0.28945235]
[1736684317890,1.79906485,692.06,690.96,0.28945235]
[1736684319893,1.79906485,692.06,690.64,2.68612502]
[1736684320094,1.79906485,692.06,690.65,3.00498482]
[1736684320294,1.79906485,692.06,690.66,2.68612502]
[1736684320996,0.28899228,692.06,690.66,2.68612502]
[1736684321389,0.28899228,692.06,690.67,3.29455871]
[1736684321592,0.28899228,692.06,690.68,2.68612502]
[1736684322695,0.28899228,692.06,690.73,1.30035534]
[1736684324100,0.28899228,692.06,690.74,1.30035534]
[1736684324698,0.28899228,692.06,690.72,1.77634952]
[1736684326001,0.28899228,692.06,690.67,0.28957389]
[1736684337114,0.28899228,692.06,690.73,1.30035534]
[1736684337913,0.28899228,692.06,690.75,0.28954035]
[1736684341815,1.50953218,692.44,690.92,1.30035534]
[1736684342113,0.26560156,692.43,690.92,1.30035534]
[1736684342315,1.08208237,692.62,690.92,1.30035534]
[1736684342511,1.50925394,692.55,690.92,1.30035534]
[1736684342811,0.26559241,692.54,690.92,1.30035534]
[1736684343220,0.26559241,692.54,690.94,1.30035534]
[1736684343916,0.26559705,692.53,690.94,1.30035534]
[1736684344118,0.55439737,692.52,690.91,1.30035534]
[1736684344417,0.26559705,692.51,690.91,1.30035534]
[1736684344817,0.26559705,692.51,690.88,0.90590981]
[1736684345015,0.28880032,692.52,690.86,3.00498482]
[1736684345216,0.28880032,692.52,690.85,1.30035534]
[1736684345612,0.28880032,692.52,690.78,1.77124111]
[1736684346719,0.28880032,692.52,690.6,3.00498482]
[1736684346720,0.28880032,692.52,690.61,2.67517114]
[1736684347614,0.28880032,692.52,690.62,3.00498482]
[1736684347914,0.28880032,692.52,690.63,2.67517114]
[1736684349118,0.28880032,692.52,690.64,3.00498482]
[1736684349315,0.28880032,692.52,690.65,2.67517114]
[1736684350413,0.28880032,692.52,690.65,1.77124111]
[1736684351519,0.28880032,692.52,690.56,2.67429209]
[1736684352920,0.28880032,692.52,690.57,3.00498482]
[1736684353113,0.28880032,692.52,690.58,2.67429209]
[1736684354516,0.28880032,692.52,690.59,3.00498482]
[1736684354721,0.28880032,692.52,690.6,2.67429209]
[1736684356217,0.28880032,692.52,690.61,3.00498482]
[1736684356416,0.28880032,692.52,690.62,2.67429209]
[1736684357522,0.28880032,692.52,690.63,3.00498482]
[1736684357722,0.28880032,692.52,690.7,1.30035534]
[1736684358920,0.28880032,692.52,690.73,1.30035534]
[1736684360220,0.28880032,692.52,691.06,1.30035534]
[1736684360422,0.28880032,692.52,691.07,0.28940628]
[1736684361319,0.28880032,692.52,691.08,1.30035534]
[1736684363324,0.28880032,692.52,691.09,1.30035534]
[1736684364521,0.28880032,692.52,691.08,1.30035534]